fUST/lending_fUST_20250221
["ID","MTS","AMOUNT","RATE_DAILY","PERIOD"]
[353883140,1740111040069,-502.84225213,0.00013698,2]
[353883142,1740111040078,-513.46125984,0.00013698,2]
[353883144,1740111040087,-502.42400886,0.00013698,2]
[353883146,1740111040097,-500.0,0.00013698,2]
[353883148,1740111040106,-553.77,0.00013698,2]
[353883150,1740111040115,-500.0,0.00013698,2]
[353883152,1740111040124,-838.68,0.00013698,2]
[353883154,1740111040134,-500.0,0.00013698,2]
[353883156,1740111040143,-500.0,0.00013698,2]
[353883158,1740111040152,-2200.03,0.00013698,2]
[353883159,1740111040161,-500.0,0.00013698,2]
[353883162,1740111040170,-1616.94,0.00013698,2]
[353883163,1740111040179,-1636.13,0.00013698,2]
[353883165,1740111040188,-518.65,0.00013698,2]
[353883167,1740111040197,-500.0,0.00013698,2]
[353883168,1740111040207,-1864.66,0.00013698,2]
[353883169,1740111040216,-500.0,0.00013698,2]
[353883170,1740111040225,-596.42994496,0.00013698,2]
[353883171,1740111040235,-500.0,0.00013698,2]
[353883172,1740111040244,-581.44,0.00013698,2]
[353883173,1740111040253,-581.44,0.00013698,2]
[353883174,1740111040262,-581.44,0.00013698,2]
[353883175,1740111040271,-581.44,0.00013698,2]
[353883176,1740111040280,-500.0,0.00013698,2]
[353883177,1740111040290,-581.44,0.00013698,2]
[353883178,1740111040299,-581.44,0.00013698,2]
[353883179,1740111040309,-581.44,0.00013698,2]
[353883180,1740111040318,-581.44,0.00013698,2]
[353883181,1740111040327,-500.0,0.00013698,2]
[353883182,1740111040336,-503.54469297,0.00013698,2]
[353883184,1740111040345,-500.0,0.00013698,2]
[353883186,1740111040355,-503.86098965,0.00013698,2]
[353883188,1740111040368,-584.08,0.00013698,2]
[353883190,1740111040377,-4589.01,0.00013698,2]
[353883192,1740111040386,-500.0,0.00013698,2]
[353883194,1740111040395,-500.0,0.00013698,2]
[353883196,1740111040404,-500.0,0.00013698,2]
[353883198,1740111040414,-1463.98,0.00013698,2]
[353883200,1740111040423,-500.0,0.00013698,2]
[353883202,1740111040433,-500.0,0.00013698,2]
[353883204,1740111040442,-709.19,0.00013698,2]
[353883206,1740111040451,-500.0,0.00013698,2]
[353883208,1740111040460,-504.08607889,0.00013698,2]
[353883210,1740111040469,-500.0,0.00013698,2]
[353883212,1740111040478,-500.0,0.00013698,2]
[353883214,1740111040487,-500.0,0.00013698,2]
[353883216,1740111040496,-501.68187407,0.00013698,2]
[353883218,1740111040505,-277.753754,0.00013699,2]
[353883220,1740111040514,-1311.062806,0.00013699,2]
[353883222,1740111040523,-151.0,0.000137,2]
[353883224,1740111040532,-203.11434619,0.00013779,2]
[353883226,1740111040542,-500.0,0.00013779,2]
[353883228,1740111040551,-500.0,0.00013779,2]
[353883230,1740111040560,-500.0,0.00013779,2]
[353883232,1740111040570,-411.88411068,0.00013779,2]
[353883234,1740111040579,-500.0,0.00013779,2]
[353883236,1740111040588,-500.0,0.00013779,2]
[353883238,1740111040597,-500.0,0.00013779,2]
[353883240,1740111040606,-500.0,0.00013779,2]
[353883242,1740111040615,-500.0,0.00013779,2]
[353883244,1740111040624,-500.0,0.00013779,2]
[353883246,1740111040634,-500.0,0.00013779,2]
[353883248,1740111040643,-500.0,0.00013779,2]
[353883250,1740111040652,-500.0,0.00013779,2]
[353883253,1740111040662,-500.0,0.00013779,2]
[353883255,1740111040671,-459.0300879,0.00013779,2]
[353883257,1740111040682,-500.0,0.00013779,2]
[353883259,1740111040690,-500.0,0.00013779,2]
[353883261,1740111040700,-500.0,0.00013779,2]
[353883263,1740111040709,-500.0,0.00013779,2]
[353883265,1740111040717,-500.0,0.00013779,2]
[353883266,1740111040726,-500.0,0.00013779,2]
[353883269,1740111040735,-500.0,0.00013779,2]
[353883271,1740111040745,-500.0,0.00013779,2]
[353883273,1740111040754,-500.0,0.00013779,2]
[353883275,1740111040764,-500.0,0.00013779,2]
[353883277,1740111040773,-500.0,0.00013779,2]
[353883279,1740111040783,-500.0,0.00013779,2]
[353883281,1740111040793,-500.0,0.00013779,2]
[353883283,1740111040803,-500.0,0.00013779,2]
[353883285,1740111040811,-500.0,0.00013779,2]
[353883287,1740111040821,-500.0,0.00013779,2]
[353883289,1740111040830,-500.0,0.00013779,2]
[353883291,1740111040839,-500.0,0.00013779,2]
[353883293,1740111040849,-220.95652135,0.00013779,2]
[353883295,1740111040858,-500.0,0.00013779,2]
[353883297,1740111040868,-500.0,0.00013779,2]
[353883299,1740111040877,-500.0,0.00013779,2]
[353883301,1740111040886,-500.0,0.00013779,2]
[353883303,1740111040895,-500.0,0.00013779,2]
[353883305,1740111040905,-500.0,0.00013779,2]
[353883307,1740111040915,-500.0,0.00013779,2]
[353883309,1740111040924,-500.0,0.00013779,2]
[353883311,1740111040933,-500.0,0.00013779,2]
[353883313,1740111040942,-500.0,0.00013779,2]
[353883315,1740111040951,-199.99999999,0.00013779,2]
[353883317,1740111040960,-581.44,0.00013779,2]
[353883319,1740111040970,-581.44,0.00013779,2]
[353883321,1740111040979,-581.44,0.00013779,2]
[353883323,1740111040989,-581.44,0.00013779,2]
[353883325,1740111040999,-581.44,0.00013779,2]
[353883327,1740111041008,-581.44,0.00013779,2]
[353883329,1740111041018,-581.44,0.00013779,2]
[353883331,1740111041027,-581.44,0.00013779,2]
[353883333,1740111041037,-500.0,0.0001378,2]
[353883336,1740111041048,-500.0,0.0001378,2]
[353883338,1740111041057,-500.0,0.0001378,2]
[353883340,1740111041066,-1000.0,0.0001378,2]
[353883342,1740111041075,-500.0,0.0001378,2]
[353883344,1740111041084,-500.0,0.0001378,2]
[353883346,1740111041093,-500.0,0.0001378,2]
[353883348,1740111041102,-500.0,0.0001378,2]
[353883349,1740111041111,-500.0,0.0001378,2]
[353883352,1740111041121,-500.0,0.0001378,2]
[353883355,1740111041131,-1391.52,0.0001378,2]
[353883358,1740111041140,-500.0,0.0001378,2]
[353883361,1740111041150,-500.0,0.0001378,2]
[353883362,1740111041159,-500.0,0.0001378,2]
[353883365,1740111041168,-500.0,0.0001378,2]
[353883367,1740111041178,-500.0,0.0001378,2]
[353883369,1740111041187,-500.0,0.0001378,2]
[353883371,1740111041196,-500.0,0.0001378,2]
[353883373,1740111041206,-500.0,0.0001378,2]
[353883375,1740111041215,-667.85,0.0001378,2]
[353883376,1740111041223,-500.0,0.0001378,2]
[353883379,1740111041233,-500.0,0.0001378,2]
[353883380,1740111041242,-500.0,0.0001378,2]
[353883383,1740111041251,-819.93,0.0001378,2]
[353883384,1740111041261,-500.0,0.0001378,2]
[353883387,1740111041271,-500.0,0.0001378,2]
[353883389,1740111041280,-500.0,0.0001378,2]
[353883391,1740111041290,-583.78,0.0001378,2]
[353883393,1740111041299,-500.0,0.0001378,2]
[353883395,1740111041307,-500.0,0.0001378,2]
[353883397,1740111041317,-184.28593974,0.0001378,2]
[353883399,1740111041326,-646.88448559,0.0001378,2]
[353883401,1740111041335,-500.0,0.0001378,2]
[353883403,1740111041344,-500.0,0.0001378,2]
[353883405,1740111041353,-921.15,0.0001378,2]
[353883407,1740111041367,-500.0,0.0001378,2]
[353883409,1740111041376,-944.8,0.0001378,2]
[353883411,1740111041385,-500.0,0.0001378,2]
[353883413,1740111041394,-322.90528435,0.0001378,2]
[353883426,1740111041511,-500.0,0.0001378,2]
[353883428,1740111041521,-696.93,0.0001378,2]
[353883430,1740111041530,-500.0,0.0001378,2]
[353883432,1740111041540,-619.66,0.0001378,2]
[353883434,1740111041549,-506.24042637,0.0001378,2]
[353883436,1740111041557,-500.0,0.0001378,2]
[353883438,1740111041567,-500.0,0.0001378,2]
[353883440,1740111041576,-500.0,0.0001378,2]
[353883442,1740111041585,-500.0,0.0001378,2]
[353883444,1740111041594,-500.0,0.0001378,2]
[353883446,1740111041603,-500.0,0.0001378,2]
[353883448,1740111041612,-500.0,0.0001378,2]
[353883450,1740111041622,-14170.17,0.0001378,2]
[353883452,1740111041632,-500.0,0.0001378,2]
[353883454,1740111041641,-1730.93,0.0001378,2]
[353883456,1740111041650,-500.0097318,0.0001378,2]
[353883458,1740111041659,-1992.37,0.0001378,2]
[353883459,1740111041668,-1960.15,0.0001378,2]
[353883461,1740111041678,-6448.97,0.0001378,2]
[353883463,1740111041688,-500.0,0.0001378,2]
[353883465,1740111041697,-500.0,0.0001378,2]
[353883467,1740111041706,-500.0,0.0001378,2]
[353883469,1740111041715,-503.36694849,0.0001378,2]
[353883471,1740111041725,-1143.37,0.0001378,2]
[353883473,1740111041734,-500.0,0.0001378,2]
[353883475,1740111041743,-500.0,0.0001378,2]
[353883477,1740111041752,-500.0,0.0001378,2]
[353883479,1740111041761,-903.59,0.0001378,2]
[353883481,1740111041770,-1030.56,0.0001378,2]
[353883483,1740111041779,-2872.4,0.0001378,2]
[353883485,1740111041789,-500.0,0.0001378,2]
[353883487,1740111041798,-500.0,0.0001378,2]
[353883489,1740111041807,-28856.58,0.0001378,2]
[353883491,1740111041817,-558.82,0.0001378,2]
[353883493,1740111041826,-500.0,0.0001378,2]
[353883495,1740111041835,-500.0,0.0001378,2]
[353883497,1740111041844,-1834.57,0.0001378,2]
[353883499,1740111041854,-1451.4,0.0001378,2]
[353883501,1740111041863,-1119.84,0.0001378,2]
[353883503,1740111041872,-500.0,0.0001378,2]
[353883505,1740111041881,-500.0,0.0001378,2]
[353883507,1740111041890,-11981.88,0.0001378,2]
[353883509,1740111041899,-2597.87,0.0001378,2]
[353883511,1740111041909,-1107.5,0.0001378,2]
[353883513,1740111041919,-5183.19,0.0001378,2]
[353883515,1740111041928,-920.84,0.0001378,2]
[353883517,1740111041937,-500.0,0.0001378,2]
[353883519,1740111041947,-915.53,0.0001378,2]
[353883521,1740111041956,-712.21,0.0001378,2]
[353883523,1740111041965,-2828.99,0.0001378,2]
[353883525,1740111041974,-500.0,0.0001378,2]
[353883527,1740111041983,-504.64122037,0.0001378,2]
[353883529,1740111041992,-500.0,0.0001378,2]
[353883531,1740111042002,-1569.7,0.0001378,2]
[353883533,1740111042011,-702.91,0.0001378,2]
[353883535,1740111042021,-503.93101736,0.0001378,2]
[353883537,1740111042030,-3081.86,0.0001378,2]
[353883538,1740111042041,-1013.92,0.0001378,2]
[353883540,1740111042050,-500.0,0.0001378,2]
[353883543,1740111042061,-553.77,0.0001378,2]
[353883545,1740111042070,-500.0,0.0001378,2]
[353883547,1740111042080,-838.68,0.0001378,2]
[353883549,1740111042090,-500.0,0.0001378,2]
[353883550,1740111042099,-503.83248927,0.0001378,2]
[353883552,1740111042109,-2200.03,0.0001378,2]
[353883554,1740111042119,-1616.94,0.0001378,2]
[353883556,1740111042128,-1636.13,0.0001378,2]
[353883559,1740111042138,-518.65,0.0001378,2]
[353883560,1740111042148,-500.0,0.0001378,2]
[353883563,1740111042157,-1864.66,0.0001378,2]
[353883565,1740111042167,-500.0,0.0001378,2]
[353883566,1740111042176,-500.0,0.0001378,2]
[353883568,1740111042185,-500.0,0.0001378,2]
[353883570,1740111042195,-500.0,0.0001378,2]
[353883572,1740111042204,-500.0,0.0001378,2]
[353883574,1740111042214,-584.08,0.0001378,2]
[353883576,1740111042223,-4589.01,0.0001378,2]
[353883578,1740111042233,-500.0,0.0001378,2]
[353883580,1740111042242,-500.0,0.0001378,2]
[353883583,1740111042252,-512.35017562,0.0001378,2]
[353883585,1740111042261,-1463.98,0.0001378,2]
[353883586,1740111042271,-500.0,0.0001378,2]
[353883589,1740111042281,-500.0,0.0001378,2]
[353883591,1740111042296,-709.19,0.0001378,2]
[353883593,1740111042307,-500.0,0.0001378,2]
[353883595,1740111042316,-500.0,0.0001378,2]
[353883597,1740111042325,-500.0,0.0001378,2]
[353883599,1740111042334,-500.0,0.0001378,2]
[353883601,1740111042344,-1000.0,0.000138,2]
[353883603,1740111042353,-1000.0,0.000138,3]
[353883605,1740111042364,-1000.0,0.000138,4]
[353883607,1740111042373,-1000.0,0.000138,5]
[353883609,1740111042383,-151.0,0.000138,2]
[353883611,1740111042394,-581.44,0.0001386,2]
[353883613,1740111042403,-581.44,0.00013861,2]
[353883615,1740111042413,-581.44,0.00013862,2]
[353883617,1740111042423,-581.44,0.00013862,2]
[353883619,1740111042432,-581.44,0.00013862,2]
[353883621,1740111042442,-581.44,0.00013862,2]
[353883623,1740111042452,-581.44,0.00013862,2]
[353883625,1740111042461,-581.45620356,0.00013862,2]
[353883627,1740111042471,-500.0,0.00013863,2]
[353883629,1740111042480,-361.98425505,0.00013863,2]
[353883631,1740111042489,-500.0,0.00013863,2]
[353883632,1740111042498,-500.0,0.00013863,2]
[353883634,1740111042507,-500.0,0.00013863,2]
[353883636,1740111042517,-500.0,0.00013863,2]
[353883639,1740111042527,-500.0,0.00013863,2]
[353883641,1740111042537,-500.0,0.00013863,2]
[353883643,1740111042547,-1391.52,0.00013863,2]
[353883644,1740111042556,-500.0,0.00013863,2]
[353883646,1740111042565,-500.0,0.00013863,2]
[353883648,1740111042575,-500.0,0.00013863,2]
[353883650,1740111042584,-500.0,0.00013863,2]
[353883653,1740111042594,-500.0,0.00013863,2]
[353883655,1740111042603,-500.0,0.00013863,2]
[353883657,1740111042613,-500.0,0.00013863,2]
[353883659,1740111042623,-500.0,0.00013863,2]
[353883661,1740111042632,-667.85,0.00013863,2]
[353883663,1740111042641,-500.0,0.00013863,2]
[353883665,1740111042650,-500.0,0.00013863,2]
[353883667,1740111042659,-500.0,0.00013863,2]
[353883668,1740111042669,-819.93,0.00013863,2]
[353883670,1740111042678,-500.0,0.00013863,2]
[353883672,1740111042687,-500.0,0.00013863,2]
[353883675,1740111042696,-500.0,0.00013863,2]
[353883676,1740111042705,-583.78,0.00013863,2]
[353883678,1740111042714,-500.0,0.00013863,2]
[353883681,1740111042723,-500.0,0.00013863,2]
[353883683,1740111042733,-500.0,0.00013863,2]
[353883685,1740111042742,-500.0,0.00013863,2]
[353883687,1740111042751,-921.15,0.00013863,2]
[353883689,1740111042760,-500.0,0.00013863,2]
[353883691,1740111042770,-944.8,0.00013863,2]
[353883693,1740111042779,-500.0,0.00013863,2]
[353883695,1740111042788,-500.0,0.00013863,2]
[353883697,1740111042797,-696.93,0.00013863,2]
[353883699,1740111042806,-500.0,0.00013863,2]
[353883701,1740111042816,-619.66,0.00013863,2]
[353883703,1740111042826,-500.0,0.00013863,2]
[353883705,1740111042835,-500.0,0.00013863,2]
[353883707,1740111042844,-402.1478177,0.00013863,2]
[353883709,1740111042853,-500.0,0.00013863,2]
[353883711,1740111042863,-500.0,0.00013863,2]
[353883713,1740111042873,-500.0,0.00013863,2]
[353883715,1740111042881,-500.0,0.00013863,2]
[353883717,1740111042890,-14170.17,0.00013863,2]
[353883719,1740111042901,-500.0,0.00013863,2]
[353883721,1740111042910,-1730.93,0.00013863,2]
[353883723,1740111042920,-1992.37,0.00013863,2]
[353883725,1740111042929,-1960.15,0.00013863,2]
[353883727,1740111042938,-6448.97,0.00013863,2]
[353883729,1740111042947,-500.0,0.00013863,2]
[353883731,1740111042956,-500.0,0.00013863,2]
[353883733,1740111042965,-500.0,0.00013863,2]
[353883735,1740111042974,-1143.37,0.00013863,2]
[353883737,1740111042983,-500.0,0.00013863,2]
[353883739,1740111042992,-500.0,0.00013863,2]
[353883741,1740111043001,-500.0,0.00013863,2]
[353883743,1740111043010,-903.59,0.00013863,2]
[353883745,1740111043019,-1030.56,0.00013863,2]
[353883747,1740111043028,-2872.4,0.00013863,2]
[353883749,1740111043038,-500.0,0.00013863,2]
[353883750,1740111043047,-500.0,0.00013863,2]
[353883752,1740111043056,-28856.58,0.00013863,2]
[353883754,1740111043066,-558.82,0.00013863,2]
[353883757,1740111043076,-500.0,0.00013863,2]
[353883759,1740111043085,-500.0,0.00013863,2]
[353883760,1740111043095,-1834.57,0.00013863,2]
[353883763,1740111043104,-1451.4,0.00013863,2]
[353883765,1740111043113,-1119.84,0.00013863,2]
[353883768,1740111043123,-500.0,0.00013863,2]
[353883770,1740111043132,-500.0,0.00013863,2]
[353883771,1740111043141,-11981.88,0.00013863,2]
[353883773,1740111043151,-2597.87,0.00013863,2]
[353883775,1740111043160,-1107.5,0.00013863,2]
[353883777,1740111043169,-5183.19,0.00013863,2]
[353883779,1740111043179,-920.84,0.00013863,2]
[353883781,1740111043187,-500.0,0.00013863,2]
[353883783,1740111043197,-915.53,0.00013863,2]
[353883786,1740111043207,-712.21,0.00013863,2]
[353883787,1740111043217,-2828.99,0.00013863,2]
[353883789,1740111043226,-504.99505626,0.00013863,2]
[353883792,1740111043235,-500.0,0.00013863,2]
[353883794,1740111043246,-1569.7,0.00013863,2]
[353883796,1740111043256,-702.91,0.00013863,2]
[353883798,1740111043265,-3081.86,0.00013863,2]
[353883800,1740111043275,-1013.92,0.00013863,2]
[353883802,1740111043284,-500.0,0.00013863,2]
[353883804,1740111043294,-553.77,0.00013863,2]
[353883806,1740111043303,-500.0,0.00013863,2]
[353883808,1740111043312,-838.68,0.00013863,2]
[353883810,1740111043321,-500.0,0.00013863,2]
[353883811,1740111043331,-2200.03,0.00013863,2]
[353883814,1740111043340,-1616.94,0.00013863,2]
[353883816,1740111043350,-1636.13,0.00013863,2]
[353883818,1740111043360,-518.65,0.00013863,2]
[353883820,1740111043372,-500.0,0.00013863,2]
[353883822,1740111043382,-1864.66,0.00013863,2]
[353883824,1740111043391,-500.0,0.00013863,2]
[353883826,1740111043402,-500.0,0.00013863,2]
[353883828,1740111043411,-500.0,0.00013863,2]
[353883830,1740111043420,-505.02935806,0.00013863,2]
[353883832,1740111043429,-500.0,0.00013863,2]
[353883834,1740111043439,-584.08,0.00013863,2]
[353883836,1740111043449,-4589.01,0.00013863,2]
[353883838,1740111043458,-500.0,0.00013863,2]
[353883840,1740111043467,-500.0,0.00013863,2]
[353883842,1740111043476,-1463.98,0.00013863,2]
[353883844,1740111043485,-500.0,0.00013863,2]
[353883846,1740111043495,-500.0,0.00013863,2]
[353883848,1740111043503,-709.19,0.00013863,2]
[353883850,1740111043512,-500.0,0.00013863,2]
[353883852,1740111043522,-500.0,0.00013863,2]
[353883854,1740111043531,-500.0,0.00013863,2]
[353883855,1740111043541,-500.0,0.00013863,2]
[353883857,1740111043551,-803.59568093,0.00013889,2]
[353883860,1740111043561,-151.0,0.000139,2]
[353883862,1740111043571,-355.2534587,0.000139,2]
[353883864,1740111043580,-500.0,0.00013945,2]
[353883866,1740111043589,-500.0,0.00013945,2]
[353883868,1740111043599,-500.0,0.00013945,2]
[353883870,1740111043608,-500.0,0.00013945,2]
[353883872,1740111043618,-500.0,0.00013945,2]
[353883874,1740111043628,-500.0,0.00013945,2]
[353883876,1740111043637,-1391.52,0.00013945,2]
[353883878,1740111043647,-500.0,0.00013945,2]
[353883880,1740111043656,-500.0,0.00013945,2]
[353883882,1740111043665,-500.0,0.00013945,2]
[353883884,1740111043675,-500.0,0.00013945,2]
[353883886,1740111043684,-500.0,0.00013945,2]
[353883888,1740111043694,-500.0,0.00013945,2]
[353883890,1740111043703,-500.0,0.00013945,2]
[353883892,1740111043712,-500.0,0.00013945,2]
[353883894,1740111043721,-667.85,0.00013945,2]
[353883896,1740111043730,-500.0,0.00013945,2]
[353883898,1740111043739,-500.0,0.00013945,2]
[353883900,1740111043749,-500.0,0.00013945,2]
[353883902,1740111043759,-819.93,0.00013945,2]
[353883904,1740111043768,-500.0,0.00013945,2]
[353883906,1740111043777,-500.0,0.00013945,2]
[353883908,1740111043786,-500.0,0.00013945,2]
[353883910,1740111043795,-583.78,0.00013945,2]
[353883912,1740111043804,-500.0,0.00013945,2]
[353883913,1740111043813,-500.0,0.00013945,2]
[353883914,1740111043822,-500.0,0.00013945,2]
[353883915,1740111043831,-500.0,0.00013945,2]
[353883916,1740111043840,-921.15,0.00013945,2]
[353883917,1740111043850,-500.0,0.00013945,2]
[353883918,1740111043859,-944.8,0.00013945,2]
[353883919,1740111043868,-500.0,0.00013945,2]
[353883920,1740111043876,-500.0,0.00013945,2]
[353883921,1740111043886,-696.93,0.00013945,2]
[353883922,1740111043895,-500.0,0.00013945,2]
[353883923,1740111043905,-619.66,0.00013945,2]
[353883924,1740111043915,-500.0,0.00013945,2]
[353883925,1740111043924,-500.0,0.00013945,2]
[353883926,1740111043933,-500.0,0.00013945,2]
[353883927,1740111043942,-500.0,0.00013945,2]
[353883928,1740111043951,-500.0,0.00013945,2]
[353883929,1740111043960,-500.0,0.00013945,2]
[353883930,1740111043969,-14170.17,0.00013945,2]
[353883942,1740111044072,-500.0,0.00013945,2]
[353883944,1740111044082,-1730.93,0.00013945,2]
[353883946,1740111044091,-1992.37,0.00013945,2]
[353883948,1740111044101,-1960.15,0.00013945,2]
[353883950,1740111044111,-6448.97,0.00013945,2]
[353883952,1740111044121,-500.0,0.00013945,2]
[353883954,1740111044130,-500.0,0.00013945,2]
[353883956,1740111044140,-500.0,0.00013945,2]
[353883959,1740111044149,-1143.37,0.00013945,2]
[353883961,1740111044159,-500.0,0.00013945,2]
[353883963,1740111044168,-500.0,0.00013945,2]
[353883965,1740111044177,-500.0,0.00013945,2]
[353883967,1740111044187,-903.59,0.00013945,2]
[353883969,1740111044196,-1030.56,0.00013945,2]
[353883971,1740111044206,-2872.4,0.00013945,2]
[353883973,1740111044215,-500.0,0.00013945,2]
[353883975,1740111044224,-500.0,0.00013945,2]
[353883977,1740111044233,-28856.58,0.00013945,2]
[353883979,1740111044243,-558.82,0.00013945,2]
[353883981,1740111044252,-500.0,0.00013945,2]
[353883983,1740111044261,-500.0,0.00013945,2]
[353883985,1740111044270,-1834.57,0.00013945,2]
[353883987,1740111044279,-1451.4,0.00013945,2]
[353883989,1740111044291,-1119.84,0.00013945,2]
[353883991,1740111044300,-500.0,0.00013945,2]
[353883993,1740111044309,-500.0,0.00013945,2]
[353883995,1740111044318,-11981.88,0.00013945,2]
[353883997,1740111044327,-2597.87,0.00013945,2]
[353883999,1740111044336,-1107.5,0.00013945,2]
[353884001,1740111044346,-5183.19,0.00013945,2]
[353884003,1740111044355,-920.84,0.00013945,2]
[353884005,1740111044366,-500.0,0.00013945,2]
[353884007,1740111044377,-915.53,0.00013945,2]
[353884009,1740111044386,-712.21,0.00013945,2]
[353884011,1740111044395,-2828.99,0.00013945,2]
[353884013,1740111044406,-500.0,0.00013945,2]
[353884015,1740111044415,-1569.7,0.00013945,2]
[353884017,1740111044424,-702.91,0.00013945,2]
[353884019,1740111044432,-3081.86,0.00013945,2]
[353884020,1740111044442,-1013.92,0.00013945,2]
[353884022,1740111044452,-500.0,0.00013945,2]
[353884024,1740111044461,-553.77,0.00013945,2]
[353884026,1740111044470,-500.0,0.00013945,2]
[353884028,1740111044479,-838.68,0.00013945,2]
[353884030,1740111044489,-500.0,0.00013945,2]
[353884032,1740111044498,-2200.03,0.00013945,2]
[353884034,1740111044508,-1616.94,0.00013945,2]
[353884036,1740111044517,-1636.13,0.00013945,2]
[353884038,1740111044526,-518.65,0.00013945,2]
[353884040,1740111044535,-500.0,0.00013945,2]
[353884042,1740111044546,-1864.66,0.00013945,2]
[353884044,1740111044555,-500.0,0.00013945,2]
[353884047,1740111044565,-500.0,0.00013945,2]
[353884049,1740111044575,-500.0,0.00013945,2]
[353884051,1740111044584,-500.0,0.00013945,2]
[353884053,1740111044594,-584.08,0.00013945,2]
[353884054,1740111044603,-4589.01,0.00013945,2]
[353884056,1740111044612,-500.0,0.00013945,2]
[353884058,1740111044622,-500.0,0.00013945,2]
[353884060,1740111044631,-1463.98,0.00013945,2]
[353884063,1740111044640,-500.0,0.00013945,2]
[353884065,1740111044650,-500.0,0.00013945,2]
[353884067,1740111044659,-709.19,0.00013945,2]
[353884069,1740111044670,-500.0,0.00013945,2]
[353884070,1740111044680,-213.92220593,0.00013945,2]
[353884073,1740111044691,-500.0,0.00013945,2]
[353884075,1740111044700,-500.0,0.00013945,2]
[353884076,1740111044710,-151.0,0.00014,2]
[353884079,1740111044719,-2926.33189115,0.00014009,2]
[353884080,1740111044728,-38980.20807772,0.00014009,2]
[353884083,1740111044738,-203.08957342,0.00014009,2]
[353884085,1740111044747,-203.08,0.00014009,2]
[353884087,1740111044757,-280.23128327,0.00014009,2]
[353884089,1740111044767,-280.23128327,0.00014009,2]
[353884090,1740111044777,-280.23128327,0.00014009,2]
[353884093,1740111044787,-280.23128327,0.00014009,2]
[353884095,1740111044797,-280.23128327,0.00014009,2]
[353884097,1740111044806,-280.23128327,0.00014009,2]
[353884099,1740111044815,-280.23128327,0.00014009,2]
[353884101,1740111044825,-280.23128327,0.00014009,2]
[353884103,1740111044833,-280.23128327,0.00014009,2]
[353884104,1740111044842,-280.23128327,0.00014009,2]
[353884106,1740111044852,-280.23128327,0.00014009,2]
[353884108,1740111044862,-280.23128327,0.00014009,2]
[353884110,1740111044871,-280.23128327,0.00014009,2]
[353884113,1740111044881,-280.23128327,0.00014009,2]
[353884115,1740111044891,-280.23128327,0.00014009,2]
[353884116,1740111044901,-280.23128327,0.00014009,2]
[353884119,1740111044911,-280.23128327,0.00014009,2]
[353884121,1740111044920,-280.23128327,0.00014009,2]
[353884123,1740111044929,-280.23128327,0.00014009,2]
[353884125,1740111044940,-280.23,0.00014009,2]
[353884127,1740111044952,-350.98694837,0.00014009,2]
[353884129,1740111044960,-350.98694837,0.00014009,2]
[353884131,1740111044970,-350.98694837,0.00014009,2]